[Event "Torneo Nuevo Centro. Jornada 10"]
[Site "Chess.com"]
[Date "2020.08.21"]
[Round "6"]
[White "Valverde Alcaide, Miguel Alejandro"]
[Black "Pardo Ruiz, Beatriz"]
[Result "1-0"]
[WhiteElo "910"]
[BlackElo "1288"]
[TimeControl "180+2"]
[EndTime "11:36:52 PDT"]
[Termination "Victoria de mentafurterei por tiempo"]

1. e4 {[%clk 0:02:59.8]} 1... e5 {[%clk 0:02:59.6]} 2. d4 {[%clk 0:03:00]} 2...
exd4 {[%clk 0:02:59.5]} 3. Qxd4 {[%clk 0:03:00.3]} 3... Nc6 {[%clk 0:02:57]} 4.
Qc3 {[%clk 0:02:55.1]} 4... Bb4 {[%clk 0:02:54.8]} 5. Qxb4 {[%clk 0:02:48.6]}
5... Nxb4 {[%clk 0:02:51.5]} 6. Kd2 {[%clk 0:02:47.6]} 6... Nf6 {[%clk
0:02:46.8]} 7. f3 {[%clk 0:02:45.7]} 7... d5 {[%clk 0:02:44.3]} 8. c3 {[%clk
0:02:42.2]} 8... dxe4+ {[%clk 0:02:42.4]} 9. Ke2 {[%clk 0:02:37.6]} 9... Qd3+
{[%clk 0:02:41.9]} 10. Ke1 {[%clk 0:02:38.1]} 10... Nc2+ {[%clk 0:02:35.8]} 11.
Kf2 {[%clk 0:02:34]} 11... exf3 {[%clk 0:02:20.1]} 12. Bxd3 {[%clk 0:02:32.8]}
12... fxg2 {[%clk 0:01:59.9]} 13. Kxg2 {[%clk 0:02:30.2]} 13... Ne1+ {[%clk
0:01:57.7]} 14. Kf1 {[%clk 0:02:28.7]} 14... Nxd3 {[%clk 0:01:56.8]} 15. Bg5
{[%clk 0:02:15.7]} 15... Ne4 {[%clk 0:01:53.7]} 16. Be3 {[%clk 0:02:06.5]} 16...
O-O {[%clk 0:01:48]} 17. h4 {[%clk 0:02:05.8]} 17... Nxb2 {[%clk 0:01:30.8]} 18.
Rh2 {[%clk 0:01:59]} 18... Nd3 {[%clk 0:01:29.2]} 19. Nd2 {[%clk 0:01:59.2]}
19... Nxd2+ {[%clk 0:01:26.1]} 20. Bxd2 {[%clk 0:01:59.6]} 20... Re8 {[%clk
0:01:21.3]} 21. Nf3 {[%clk 0:01:55.2]} 21... Re6 {[%clk 0:01:08]} 22. h5 {[%clk
0:01:50.3]} 22... Rf6 {[%clk 0:01:03]} 23. Kg2 {[%clk 0:01:46.5]} 23... Bd7
{[%clk 0:00:54.4]} 24. Ng5 {[%clk 0:01:34.9]} 24... Rf2+ {[%clk 0:00:49.1]} 25.
Kh1 {[%clk 0:01:30.1]} 25... Bc6+ {[%clk 0:00:36.7]} 26. Kg1 {[%clk 0:01:27.4]}
26... Rxh2 {[%clk 0:00:36]} 27. Kxh2 {[%clk 0:01:27.6]} 27... Re8 {[%clk
0:00:34]} 28. Rg1 {[%clk 0:01:19.5]} 28... Re2+ {[%clk 0:00:31.1]} 29. Kh3
{[%clk 0:01:19]} 29... Rxd2 {[%clk 0:00:31.8]} 30. h6 {[%clk 0:01:09.4]} 30...
gxh6 {[%clk 0:00:25.8]} 31. Ne4+ {[%clk 0:01:08.9]} 31... Kh8 {[%clk 0:00:20.4]}
32. Nxd2 {[%clk 0:01:08.7]} 32... Nf2+ {[%clk 0:00:19.7]} 33. Kh4 {[%clk
0:01:04.5]} 33... Bd5 {[%clk 0:00:14.1]} 34. Rf1 {[%clk 0:01:00.8]} 34... Ne4
{[%clk 0:00:12.7]} 35. Rf5 {[%clk 0:00:55.7]} 1

[Event "Torneo Nuevo Centro. Jornada 10"]
[Site "Chess.com"]
[Date "2020.08.21"]
[Round "6"]
[White "Bendayán Claros, Aaron"]
[Black "Gómez Alonso, Óscar"]
[Result "1-0"]
[WhiteElo "1972"]
[BlackElo "1834"]
[TimeControl "180+2"]
[EndTime "11:37:06 PDT"]
[Termination "Victoria de Cuajada_Zero por abandono"]

1. e4 {[%clk 0:03:01.9]} 1... c5 {[%clk 0:03:00.7]} 2. Nc3 {[%clk 0:03:00.5]}
2... e6 {[%clk 0:03:01.7]} 3. Nf3 {[%clk 0:02:54.5]} 3... Qc7 {[%clk 0:03:02.5]}
4. Bc4 {[%clk 0:02:52.8]} 4... a6 {[%clk 0:03:03.6]} 5. a4 {[%clk 0:02:53.5]}
5... d6 {[%clk 0:02:57.2]} 6. O-O {[%clk 0:02:54.3]} 6... Nf6 {[%clk 0:02:55.5]}
7. Re1 {[%clk 0:02:54.6]} 7... Nc6 {[%clk 0:02:52.5]} 8. d3 {[%clk 0:02:55]}
8... Nd4 {[%clk 0:02:52.7]} 9. Nxd4 {[%clk 0:02:55.2]} 9... cxd4 {[%clk
0:02:53.6]} 10. Ne2 {[%clk 0:02:56.6]} 10... e5 {[%clk 0:02:53.6]} 11. Bb3
{[%clk 0:02:56.1]} 11... Be6 {[%clk 0:02:53.8]} 12. Bxe6 {[%clk 0:02:55.9]}
12... fxe6 {[%clk 0:02:54.8]} 13. f4 {[%clk 0:02:57.3]} 13... Be7 {[%clk
0:02:54]} 14. fxe5 {[%clk 0:02:57.3]} 14... dxe5 {[%clk 0:02:54.9]} 15. Bd2
{[%clk 0:02:50.5]} 15... O-O {[%clk 0:02:54.7]} 16. c4 {[%clk 0:02:51.5]} 16...
dxc3 {[%clk 0:02:35.3]} 17. Bxc3 {[%clk 0:02:52.2]} 17... Rad8 {[%clk 0:02:34]}
18. Ng3 {[%clk 0:02:51.1]} 18... Rd7 {[%clk 0:02:32.9]} 19. Qe2 {[%clk
0:02:51.3]} 19... Rfd8 {[%clk 0:02:32.9]} 20. Rad1 {[%clk 0:02:52.4]} 20... Qc6
{[%clk 0:02:24.4]} 21. a5 {[%clk 0:02:49.2]} 21... Qb5 {[%clk 0:02:21.9]} 22.
Nf1 {[%clk 0:02:28.9]} 22... Bb4 {[%clk 0:02:10.1]} 23. Bxb4 {[%clk 0:02:19.2]}
23... Qxb4 {[%clk 0:02:10.5]} 24. Rd2 {[%clk 0:02:20.4]} 24... Qxa5 {[%clk
0:02:10.2]} 25. Red1 {[%clk 0:02:20.9]} 25... Qb5 {[%clk 0:01:48.3]} 26. h3
{[%clk 0:02:20.1]} 26... a5 {[%clk 0:01:48.2]} 27. Kh2 {[%clk 0:02:19.4]} 27...
Qc5 {[%clk 0:01:33.9]} 28. Ne3 {[%clk 0:02:18.5]} 28... b5 {[%clk 0:01:33.7]}
29. Nc2 {[%clk 0:02:04.7]} 29... a4 {[%clk 0:01:33.4]} 30. Ne3 {[%clk
0:02:02.4]} 30... Qb6 {[%clk 0:01:30.8]} 31. Nc2 {[%clk 0:02:02.1]} 31... b4
{[%clk 0:01:16.8]} 32. Ne3 {[%clk 0:02:00.3]} 32... a3 {[%clk 0:01:13.4]} 33.
bxa3 {[%clk 0:01:59.9]} 33... bxa3 {[%clk 0:01:14.2]} 34. Nc4 {[%clk 0:02:01.3]}
34... Qa6 {[%clk 0:01:07.8]} 35. Nxe5 {[%clk 0:01:49.4]} 35... Qd6 {[%clk
0:01:02.9]} 36. d4 {[%clk 0:01:49.7]} 36... Ra7 {[%clk 0:01:02]} 37. Kh1 {[%clk
0:01:48]} 37... Rda8 {[%clk 0:01:01.7]} 38. Ra2 {[%clk 0:01:47.4]} 38... Nd7
{[%clk 0:01:00.8]} 39. Nxd7 {[%clk 0:01:45.3]} 39... Qxd7 {[%clk 0:01:01.8]} 40.
d5 {[%clk 0:01:46]} 40... exd5 {[%clk 0:01:00.8]} 41. exd5 {[%clk 0:01:46.1]}
41... Qe7 {[%clk 0:00:55.1]} 42. Qc4 {[%clk 0:01:40.7]} 42... Qd6 {[%clk
0:00:54.6]} 43. Qd3 {[%clk 0:01:34.4]} 43... h6 {[%clk 0:00:54.9]} 44. Re1
{[%clk 0:01:32.4]} 44... Rd8 {[%clk 0:00:55.6]} 45. Re6 {[%clk 0:01:27.2]} 45...
Qxd5 {[%clk 0:00:52.8]} 46. Re8+ {[%clk 0:01:25.7]} 46... Kf7 {[%clk 0:00:51.9]}
47. Rxd8 {[%clk 0:01:16.2]} 47... Qxa2 {[%clk 0:00:50.1]} 48. Qf5+ {[%clk
0:01:12.9]} 48... Ke7 {[%clk 0:00:49.5]} 49. Qf8+ {[%clk 0:01:14]} 49... Ke6
{[%clk 0:00:49.9]} 50. Qg8+ {[%clk 0:01:14.7]} 50... Kf5 {[%clk 0:00:50.5]} 51.
Qxa2 {[%clk 0:01:14.6]} 1

[Event "Torneo Nuevo Centro. Jornada 10"]
[Site "Chess.com"]
[Date "2020.08.21"]
[Round "6"]
[White "Sanchis Bon, Sergi"]
[Black "Grigorev, Artur "]
[Result "1-0"]
[WhiteElo "992"]
[BlackElo "921"]
[TimeControl "180+2"]
[EndTime "11:37:14 PDT"]
[Termination "Victoria de Sergi_2011 por tiempo"]

1. e4 {[%clk 0:03:01.9]} 1... e5 {[%clk 0:02:58.6]} 2. Nc3 {[%clk 0:02:58.8]}
2... Nf6 {[%clk 0:02:55.9]} 3. d3 {[%clk 0:02:57.2]} 3... Bc5 {[%clk 0:02:44]}
4. Nf3 {[%clk 0:02:53]} 4... Nc6 {[%clk 0:02:43.1]} 5. b3 {[%clk 0:02:43.3]}
5... O-O {[%clk 0:02:24.3]} 6. g3 {[%clk 0:02:43]} 6... d6 {[%clk 0:02:24]} 7.
Bg2 {[%clk 0:02:43.2]} 7... Bg4 {[%clk 0:02:24]} 8. a3 {[%clk 0:02:19]} 8...
Bxf3 {[%clk 0:02:19.5]} 9. Bxf3 {[%clk 0:02:19]} 9... Bd4 {[%clk 0:02:18]} 10.
Bd2 {[%clk 0:02:05.6]} 10... a5 {[%clk 0:02:05.5]} 11. O-O {[%clk 0:01:59.1]}
11... d5 {[%clk 0:01:37.6]} 12. Rb1 {[%clk 0:01:39.6]} 12... dxe4 {[%clk
0:01:33.8]} 13. dxe4 {[%clk 0:01:32.3]} 13... Bxc3 {[%clk 0:01:32]} 14. Bxc3
{[%clk 0:01:31.2]} 14... Qxd1 {[%clk 0:01:31.9]} 15. Rbxd1 {[%clk 0:01:29.9]}
15... a4 {[%clk 0:01:28.9]} 16. b4 {[%clk 0:01:28.3]} 16... b5 {[%clk
0:01:15.2]} 17. Rd2 {[%clk 0:01:23.2]} 17... Rfe8 {[%clk 0:01:03]} 18. Rfd1
{[%clk 0:01:23.6]} 18... Rac8 {[%clk 0:00:57.7]} 19. g4 {[%clk 0:01:11.3]} 19...
Ne7 {[%clk 0:00:53.1]} 20. g5 {[%clk 0:01:10.4]} 20... Nxe4 {[%clk 0:00:31.4]}
21. Bxe4 {[%clk 0:01:07.1]} 21... c5 {[%clk 0:00:28]} 22. f3 {[%clk 0:00:31.5]}
22... cxb4 {[%clk 0:00:27.3]} 23. Bxb4 {[%clk 0:00:30.7]} 23... Nc6 {[%clk
0:00:25.4]} 24. Bf5 {[%clk 0:00:21.4]} 24... Rb8 {[%clk 0:00:16]} 25. Bd7 {[%clk
0:00:20.4]} 25... Red8 {[%clk 0:00:11.3]} 26. Bxc6 {[%clk 0:00:19]} 26... Rxd2
{[%clk 0:00:11.7]} 27. Rxd2 {[%clk 0:00:19.8]} 27... Rc8 {[%clk 0:00:12.3]} 28.
Bxb5 {[%clk 0:00:16.2]} 28... g6 {[%clk 0:00:10]} 29. Bxa4 {[%clk 0:00:14.5]}
29... h5 {[%clk 0:00:07]} 30. h4 {[%clk 0:00:13.3]} 1

[Event "Torneo Nuevo Centro. Jornada 10"]
[Site "Chess.com"]
[Date "2020.08.21"]
[Round "6"]
[White "Sos Andreu, Eric"]
[Black "Fenollar Jorda, Manolo"]
[Result "1-0"]
[WhiteElo "2526"]
[BlackElo "2482"]
[TimeControl "180+2"]
[EndTime "11:37:21 PDT"]
[Termination "Victoria de ericovski por abandono"]

1. c4 {[%clk 0:03:01.9]} 1... c6 {[%clk 0:03:00.5]} 2. e4 {[%clk 0:03:02.1]}
2... d5 {[%clk 0:03:01.1]} 3. exd5 {[%clk 0:03:01.9]} 3... cxd5 {[%clk 0:03:03]}
4. d4 {[%clk 0:03:02.9]} 4... Nc6 {[%clk 0:03:03.1]} 5. Nc3 {[%clk 0:03:03.8]}
5... Nf6 {[%clk 0:03:03.5]} 6. Bg5 {[%clk 0:03:02.4]} 6... e6 {[%clk 0:03:03.6]}
7. Nf3 {[%clk 0:02:53.9]} 7... Be7 {[%clk 0:03:03.9]} 8. cxd5 {[%clk 0:02:50.2]}
8... Nxd5 {[%clk 0:03:03.1]} 9. Bd2 {[%clk 0:02:47.5]} 9... O-O {[%clk
0:03:02.4]} 10. Bd3 {[%clk 0:02:45.8]} 10... b6 {[%clk 0:02:53.9]} 11. O-O
{[%clk 0:02:41.3]} 11... Bb7 {[%clk 0:02:54.8]} 12. Re1 {[%clk 0:02:38.4]} 12...
Rc8 {[%clk 0:02:54.2]} 13. Rc1 {[%clk 0:02:33.2]} 13... Ndb4 {[%clk 0:02:41.8]}
14. Be4 {[%clk 0:02:34.1]} 14... Nd5 {[%clk 0:02:30.6]} 15. Nxd5 {[%clk
0:02:23.5]} 15... exd5 {[%clk 0:02:32.5]} 16. Bf5 {[%clk 0:02:24.6]} 16... Rc7
{[%clk 0:02:25.2]} 17. Bf4 {[%clk 0:02:24.9]} 17... Bd6 {[%clk 0:02:21.4]} 18.
Bg5 {[%clk 0:02:11.4]} 18... Be7 {[%clk 0:02:15.2]} 19. Be3 {[%clk 0:02:10.1]}
19... Bf6 {[%clk 0:02:14.3]} 20. Bf4 {[%clk 0:01:34.1]} 20... Re7 {[%clk
0:02:12.4]} 21. Ne5 {[%clk 0:01:35.1]} 21... Nxe5 {[%clk 0:01:19.9]} 22. dxe5
{[%clk 0:01:35.3]} 22... Rfe8 {[%clk 0:01:21.1]} 23. exf6 {[%clk 0:01:23.4]}
23... Rxe1+ {[%clk 0:01:23]} 24. Qxe1 {[%clk 0:01:24.6]} 24... Rxe1+ {[%clk
0:01:23.9]} 25. Rxe1 {[%clk 0:01:26.2]} 25... Bc6 {[%clk 0:01:13]} 26. Re7
{[%clk 0:00:45]} 26... gxf6 {[%clk 0:01:13.4]} 27. Rc7 {[%clk 0:00:40.3]} 27...
Be8 {[%clk 0:01:01.6]} 28. Rxa7 {[%clk 0:00:40.1]} 28... d4 {[%clk 0:00:50.3]}
29. Bh6 {[%clk 0:00:35.8]} 29... d3 {[%clk 0:00:50]} 30. Ra3 {[%clk 0:00:29.8]}
30... d2 {[%clk 0:00:49.1]} 31. Rg3+ {[%clk 0:00:27.3]} 31... Kh8 {[%clk
0:00:50.1]} 32. Bg7+ {[%clk 0:00:26.3]} 32... Kg8 {[%clk 0:00:51.4]} 33. Bxf6+
{[%clk 0:00:24.4]} 33... Kf8 {[%clk 0:00:52.7]} 34. Bg7+ {[%clk 0:00:20.1]}
34... Ke7 {[%clk 0:00:20.4]} 35. Re3+ {[%clk 0:00:20.8]} 35... Kd6 {[%clk
0:00:21.6]} 36. Rd3+ {[%clk 0:00:21.7]} 36... Kc7 {[%clk 0:00:23.2]} 37. Rxd8
{[%clk 0:00:22.4]} 37... Kxd8 {[%clk 0:00:25.1]} 38. Bc2 {[%clk 0:00:23.3]}
38... Bb5 {[%clk 0:00:22]} 39. Bc3 {[%clk 0:00:23]} 1

[Event "Torneo Nuevo Centro. Jornada 10"]
[Site "Chess.com"]
[Date "2020.08.21"]
[Round "6"]
[White "Tormos Beltran, Maite"]
[Black "Carbonell Bofill, Carlos Eloy"]
[Result "0-1"]
[WhiteElo "1440"]
[BlackElo "1908"]
[TimeControl "180+2"]
[EndTime "11:37:33 PDT"]
[Termination "Victoria de MFCARLOS por abandono"]

1. d4 {[%clk 0:03:00.1]} 1... Nf6 {[%clk 0:02:59.9]} 2. c4 {[%clk 0:02:49.3]}
2... e5 {[%clk 0:02:57]} 3. Nc3 {[%clk 0:02:46.7]} 3... exd4 {[%clk 0:02:57.4]}
4. Qxd4 {[%clk 0:02:46.1]} 4... Nc6 {[%clk 0:02:58.9]} 5. Qd1 {[%clk 0:02:45.1]}
5... Bb4 {[%clk 0:02:57.1]} 6. Qc2 {[%clk 0:02:44.2]} 6... O-O {[%clk
0:02:57.4]} 7. Nf3 {[%clk 0:02:38.4]} 7... d5 {[%clk 0:02:55.1]} 8. e3 {[%clk
0:02:29.4]} 8... Re8 {[%clk 0:02:51.8]} 9. Be2 {[%clk 0:02:27.4]} 9... d4 {[%clk
0:02:47.6]} 10. exd4 {[%clk 0:02:19.6]} 10... Nxd4 {[%clk 0:02:43.9]} 11. Nxd4
{[%clk 0:02:19.2]} 11... Qxd4 {[%clk 0:02:45.8]} 12. O-O {[%clk 0:02:19.2]}
12... Bxc3 {[%clk 0:02:22.9]} 13. bxc3 {[%clk 0:02:17.5]} 13... Qe5 {[%clk
0:02:19.5]} 14. Be3 {[%clk 0:02:15.1]} 14... Be6 {[%clk 0:02:18.9]} 15. Rae1
{[%clk 0:02:10.7]} 15... Rad8 {[%clk 0:02:16.4]} 16. Bd4 {[%clk 0:02:09.2]}
16... Qf4 {[%clk 0:01:55.5]} 17. Bf3 {[%clk 0:01:57]} 17... Bxc4 {[%clk
0:01:49.1]} 18. Rxe8+ {[%clk 0:01:49.6]} 18... Nxe8 {[%clk 0:01:40]} 19. Re1
{[%clk 0:01:45.3]} 19... Nd6 {[%clk 0:01:37.6]} 20. Be5 {[%clk 0:01:31.8]} 20...
Qh6 {[%clk 0:01:36.3]} 21. Bxd6 {[%clk 0:01:29.4]} 21... Qxd6 {[%clk 0:01:33]}
22. Bxb7 {[%clk 0:01:28.8]} 22... c6 {[%clk 0:01:31.5]} 23. Qe4 {[%clk
0:01:23.2]} 23... Bxa2 {[%clk 0:01:10.2]} 24. Qxc6 {[%clk 0:01:19.4]} 24... Qxc6
{[%clk 0:00:47.7]} 25. Bxc6 {[%clk 0:01:10.2]} 25... g5 {[%clk 0:00:48.1]} 26.
h3 {[%clk 0:01:07.7]} 26... Rc8 {[%clk 0:00:44.4]} 27. Re8+ {[%clk 0:01:04.7]}
27... Rxe8 {[%clk 0:00:43.7]} 28. Bxe8 {[%clk 0:01:05]} 28... a5 {[%clk
0:00:44.7]} 29. Ba4 {[%clk 0:01:03.4]} 29... f5 {[%clk 0:00:42.5]} 30. Kf1
{[%clk 0:01:02.4]} 30... Bc4+ {[%clk 0:00:36.9]} 31. Ke1 {[%clk 0:00:58.9]}
31... Kf7 {[%clk 0:00:38.4]} 32. Kd2 {[%clk 0:00:52.8]} 32... Ke6 {[%clk
0:00:39.5]} 33. Ke3 {[%clk 0:00:52.6]} 33... Ke5 {[%clk 0:00:40]} 34. g3 {[%clk
0:00:51.4]} 34... f4+ {[%clk 0:00:41.4]} 35. gxf4+ {[%clk 0:00:51.7]} 35...
gxf4+ {[%clk 0:00:43]} 36. Kf3 {[%clk 0:00:51.1]} 36... h5 {[%clk 0:00:43.2]}
37. Be8 {[%clk 0:00:50.5]} 37... Bb3 {[%clk 0:00:36.8]} 38. Bxh5 {[%clk
0:00:34.7]} 38... Bd1+ {[%clk 0:00:28.6]} 39. Kg2 {[%clk 0:00:29]} 39... Bxh5
{[%clk 0:00:30]} 0

[Event "Torneo Nuevo Centro. Jornada 10"]
[Site "Chess.com"]
[Date "2020.08.21"]
[Round "6"]
[White "Montesinos Diaz, Luis"]
[Black "Garcia, Jhoel"]
[Result "0-1"]
[WhiteElo "1874"]
[BlackElo "2400"]
[TimeControl "180+2"]
[EndTime "11:37:43 PDT"]
[Termination "Victoria de shoels por abandono"]

1. d4 {[%clk 0:03:01.9]} 1... d5 {[%clk 0:02:59.3]} 2. Nf3 {[%clk 0:02:59.1]}
2... c6 {[%clk 0:03:00.7]} 3. e3 {[%clk 0:02:52.4]} 3... Nf6 {[%clk 0:03:02.1]}
4. Bd3 {[%clk 0:02:53.6]} 4... Bg4 {[%clk 0:03:03.3]} 5. Nbd2 {[%clk 0:02:53.7]}
5... e6 {[%clk 0:03:04.8]} 6. b3 {[%clk 0:02:54.9]} 6... Bd6 {[%clk 0:03:06.1]}
7. Bb2 {[%clk 0:02:56.3]} 7... Nbd7 {[%clk 0:03:07.6]} 8. h3 {[%clk 0:02:57.6]}
8... Bh5 {[%clk 0:03:08.3]} 9. O-O {[%clk 0:02:58.5]} 9... O-O {[%clk
0:03:08.9]} 10. c4 {[%clk 0:02:59.5]} 10... Qe7 {[%clk 0:03:09.1]} 11. Qc2
{[%clk 0:02:59.1]} 11... Rac8 {[%clk 0:03:09.6]} 12. Ne5 {[%clk 0:02:58.4]}
12... Bg6 {[%clk 0:03:07.8]} 13. Bxg6 {[%clk 0:02:58.2]} 13... hxg6 {[%clk
0:03:08.2]} 14. f4 {[%clk 0:02:59.7]} 14... c5 {[%clk 0:03:09.6]} 15. Qd3 {[%clk
0:02:57.4]} 15... cxd4 {[%clk 0:03:06.7]} 16. exd4 {[%clk 0:02:57.6]} 16... Bb4
{[%clk 0:03:05.7]} 17. Ndf3 {[%clk 0:02:52.5]} 17... Ne4 {[%clk 0:03:04.8]} 18.
a3 {[%clk 0:02:51.6]} 18... Bd6 {[%clk 0:03:03.3]} 19. Nxd7 {[%clk 0:02:33.6]}
19... Qxd7 {[%clk 0:03:02.1]} 20. Ne5 {[%clk 0:02:34.1]} 20... Qe7 {[%clk
0:02:57.7]} 21. a4 {[%clk 0:02:16.7]} 21... Rfd8 {[%clk 0:02:13.9]} 22. Rac1
{[%clk 0:01:54.1]} 22... f6 {[%clk 0:02:12.1]} 23. Nxg6 {[%clk 0:01:50.5]} 23...
Qf7 {[%clk 0:02:13.3]} 24. Ne5 {[%clk 0:01:42.8]} 24... Qh5 {[%clk 0:01:56.6]}
25. Ng4 {[%clk 0:01:33.2]} 25... Qf5 {[%clk 0:01:37.4]} 26. c5 {[%clk 0:01:17]}
26... Bxf4 {[%clk 0:01:24.4]} 27. Rce1 {[%clk 0:01:03.7]} 27... Qg5 {[%clk
0:01:16.6]} 28. Qf3 {[%clk 0:00:52.3]} 28... e5 {[%clk 0:00:45]} 29. dxe5 {[%clk
0:00:50.8]} 29... fxe5 {[%clk 0:00:46.3]} 30. Nxe5 {[%clk 0:00:15.8]} 30... Bxe5
{[%clk 0:00:39.4]} 31. Qf7+ {[%clk 0:00:16.3]} 31... Kh8 {[%clk 0:00:29.9]} 32.
Rf5 {[%clk 0:00:16.9]} 32... Bxb2 {[%clk 0:00:26.7]} 33. Rxg5 {[%clk 0:00:16.6]}
33... Nxg5 {[%clk 0:00:28.3]} 34. Qh5+ {[%clk 0:00:14.8]} 34... Nh7 {[%clk
0:00:29.3]} 35. Re7 {[%clk 0:00:15.3]} 35... Bf6 {[%clk 0:00:28]} 36. Rxb7
{[%clk 0:00:15.1]} 36... d4 {[%clk 0:00:29.5]} 37. Qd1 {[%clk 0:00:15.1]} 37...
d3 {[%clk 0:00:30.6]} 38. b4 {[%clk 0:00:15.3]} 38... a5 {[%clk 0:00:30.4]} 39.
Rb6 {[%clk 0:00:13.1]} 39... axb4 {[%clk 0:00:29.2]} 40. c6 {[%clk 0:00:14]}
40... d2 {[%clk 0:00:28.8]} 41. Rxb4 {[%clk 0:00:14]} 41... Rxc6 {[%clk
0:00:28.9]} 42. a5 {[%clk 0:00:13]} 42... Rc1 {[%clk 0:00:29.8]} 43. Rb1 {[%clk
0:00:10.9]} 43... Rxd1+ {[%clk 0:00:29.3]} 44. Rxd1 {[%clk 0:00:12.8]} 0

[Event "Torneo Nuevo Centro. Jornada 10"]
[Site "Chess.com"]
[Date "2020.08.21"]
[Round "6"]
[White "Chernikov, Vladimir"]
[Black "Gil López, Alejandro"]
[Result "1-0"]
[WhiteElo "2221"]
[BlackElo "2207"]
[TimeControl "180+2"]
[EndTime "11:37:47 PDT"]
[Termination "Victoria de isla88 por tiempo"]

1. b3 {[%clk 0:03:01.9]} 1... c5 {[%clk 0:03:00.7]} 2. Bb2 {[%clk 0:03:03.8]}
2... Nc6 {[%clk 0:03:01.4]} 3. e3 {[%clk 0:03:04.3]} 3... Nf6 {[%clk 0:03:02.2]}
4. Nf3 {[%clk 0:03:04.9]} 4... e6 {[%clk 0:03:03]} 5. d4 {[%clk 0:03:05.8]} 5...
cxd4 {[%clk 0:03:03.1]} 6. exd4 {[%clk 0:03:07.7]} 6... d5 {[%clk 0:03:04.2]} 7.
Bd3 {[%clk 0:03:08.2]} 7... Bd6 {[%clk 0:03:05.1]} 8. Nbd2 {[%clk 0:03:08.6]}
8... Nd7 {[%clk 0:03:01.3]} 9. O-O {[%clk 0:03:05.6]} 9... Qc7 {[%clk 0:03:01]}
10. h4 {[%clk 0:03:00.7]} 10... O-O {[%clk 0:02:59.3]} 11. Bxh7+ {[%clk
0:02:59.9]} 11... Kxh7 {[%clk 0:01:29.7]} 12. Ng5+ {[%clk 0:03:01]} 12... Kg8
{[%clk 0:01:31]} 13. c4 {[%clk 0:03:02.9]} 13... Nf6 {[%clk 0:01:24]} 14. Qf3
{[%clk 0:03:00.3]} 14... dxc4 {[%clk 0:01:17.6]} 15. Nxc4 {[%clk 0:03:00.7]}
15... Bd7 {[%clk 0:01:14.2]} 16. Rac1 {[%clk 0:02:58.2]} 16... Bf4 {[%clk
0:01:09.4]} 17. Rc2 {[%clk 0:02:51.3]} 17... Bxg5 {[%clk 0:01:03.8]} 18. hxg5
{[%clk 0:02:53.2]} 18... Nd5 {[%clk 0:01:03.3]} 19. Ne5 {[%clk 0:02:54]} 19...
Qd6 {[%clk 0:00:59.6]} 20. Ba3 {[%clk 0:02:51.7]} 20... Qxa3 {[%clk 0:00:56.8]}
21. Nxd7 {[%clk 0:02:51]} 21... Nxd4 {[%clk 0:00:57.2]} 22. Qg3 {[%clk
0:02:44.7]} 22... Nxc2 {[%clk 0:00:55.1]} 23. Nf6+ {[%clk 0:02:45]} 23... Nxf6
{[%clk 0:00:52.5]} 24. gxf6 {[%clk 0:02:46.1]} 24... g6 {[%clk 0:00:53.4]} 25.
Qh4 {[%clk 0:02:39.6]} 25... Rfd8 {[%clk 0:00:51.4]} 26. g4 {[%clk 0:02:33.6]}
26... Qf8 {[%clk 0:00:51.4]} 27. Kg2 {[%clk 0:02:33.7]} 27... Qd6 {[%clk
0:00:13.5]} 28. Qh6 {[%clk 0:01:08.8]} 28... Qf8 {[%clk 0:00:14.3]} 29. Qh4
{[%clk 0:00:49.2]} 29... Ne3+ {[%clk 0:00:14.9]} 30. fxe3 {[%clk 0:00:44.8]}
30... Rd2+ {[%clk 0:00:16.3]} 31. Kf3 {[%clk 0:00:46.3]} 31... Qd6 {[%clk
0:00:12.7]} 32. Qh6 {[%clk 0:00:19.1]} 32... Qd5+ {[%clk 0:00:11.6]} 33. Kf4
{[%clk 0:00:20.5]} 33... e5+ {[%clk 0:00:09.1]} 34. Kg5 {[%clk 0:00:21.3]} 34...
e4+ {[%clk 0:00:08.9]} 35. Rf5 {[%clk 0:00:19.1]} 35... Qxf5+ {[%clk 0:00:04]}
36. gxf5 {[%clk 0:00:20.2]} 36... Rg2+ {[%clk 0:00:04]} 37. Kf4 {[%clk
0:00:21.5]} 37... Rf2+ {[%clk 0:00:04.9]} 38. Kg3 {[%clk 0:00:21]} 38... Rf3+
{[%clk 0:00:05.3]} 39. Kg2 {[%clk 0:00:22.2]} 1